[Event "Fagernes Chess GM-Swiss 2024"]
[Site "Fagernes"]
[Date "2024.03.24"]
[Round "1.50"]
[White "Nandhidhaa, P V"]
[Black "Rynning, Rune Kleiven"]
[Result "1-0"]
[ECO "B53"]
[WhiteElo "2305"]
[BlackElo "1813"]
[Annotator "RC"]
[PlyCount "65"]
[EventDate "2024.03.25"]
[EventType "swiss"]
[EventCountry "NOR"]
[SourceTitle "playchess.com"]
[Source "ChessBase"]
[SourceQuality "1"]
[TimeControl "40/6000+30:2400+30"]

1. Nf3 {[%emt 0:01:03]} c5 {[%emt 0:00:07]} 2. e4 {[%emt 0:00:12]} d6 {[%emt 0:00:10]} 3. d4 {[%emt 0:00:35]} cxd4 {[%emt 0:00:07]} 4. Qxd4 {[%emt 0:00:37]} Nc6 {[%emt 0:00:11]} 5. Qe3 {[%emt 0:00:05]} Nf6 {[%emt 0:01:45]} 6. Be2 {[%emt 0:00:23]} g6 {[%emt 0:02:10]} 7. O-O {[%emt 0:00:27]} Bg7 {[%emt 0:00:06]} 8. h3 {[%emt 0:00:24]} O-O {[%emt 0:00:35]} 9. Rd1 {[%emt 0:00:16]} Qc7 {[%emt 0:01:59]} 10. Nc3 {[%emt 0:01:57]} a6 {[%emt 0:02:36]} 11. Bd2 {[%emt 0:03:12]} Bd7 {[%emt 0:01:28]} 12. Rac1 {[%emt 0:03:56]} Rac8 {[%emt 0:04:42]} 13. Na4 {[%emt 0:05:45]} b5 {[%emt 0:12:16]} 14. Nb6 {[%emt 0:00:18]} Rb8 {[%emt 0:00:26]} 15. Nxd7 {[%emt 0:01:42]} Nxd7 {[%emt 0:00:14]} 16. b3 {[%emt 0:02:08]} b4 {[%emt 0:09:01]} 17. c3 {[%emt 0:03:35]} a5 {[%emt 0:03:47]} 18. e5 {[%emt 0:11:17]} Bxe5 {[%emt 0:26:48]} 19. Nxe5 {[%emt 0:03:50]} Ndxe5 {[%emt 0:01:55]} 20. cxb4 {[%emt 0:02:43]} axb4 {[%emt 0:00:23]} 21. Qe4 {[%emt 0:01:07]} Rfc8 {[%emt 0:04:25]} 22. Be3 {[%emt 0:04:33]} Qd7 {[%emt 0:09:09]} 23. f4 {[%emt 0:03:01]} f5 {[%emt 0:00:09]} 24. Qd5+ {[%emt 0:01:10]} Nf7 {[%emt 0:00:13]} 25. Bb5 {[%emt 0:01:48]} Rxb5 {[%emt 0:04:24]} 26. Qxb5 {[%emt 0:00:14]} Qe8 {[%emt 0:06:46]} 27. Rc2 {[%emt 0:02:33]} e5 {[%emt 0:00:23]} 28. Rdc1 {[%emt 0:01:14]} Nfd8 {[%emt 0:00:36]} 29. Qd5+ {[%emt 0:02:17]} Kg7 {[%emt 0:02:56]} 30. Bb6 {[%emt 0:01:59]} Ne7 {[%emt 0:01:32]} 31. Qxd6 {[%emt 0:02:15]} Rxc2 {[%emt 0:00:20]} 32. Rxc2 {[%emt 0:00:11]} Ndc6 {[%emt 0:01:24]} 33. fxe5 {[%emt 0:00:46]} 1-0

[Event "Fagernes Chess GM-Swiss 2024"]
[Site "Fagernes"]
[Date "2024.03.25"]
[Round "2"]
[White "Puranik, Abhimanyu"]
[Black "Nandhidhaa, P V"]
[Result "1/2-1/2"]
[ECO "C07"]
[WhiteElo "2618"]
[BlackElo "2305"]
[Annotator "TA"]
[PlyCount "47"]
[EventDate "2024.03.25"]
[EventType "swiss"]
[EventCountry "NOR"]
[SourceTitle "playchess.com"]
[Source "ChessBase"]
[SourceQuality "1"]
[TimeControl "40/6000+30:2400+30"]

{[%evp 15,47,6,14,11,11,4,10,-8,4,8,13,-75,-39,-94,-88,-87,-93,-91,-65,-75,-53,-145,-144,-154,-118,-122,-125,-240,-235,-229,-195,-197,-130,-247]} 1. e4 {[%emt 0:01:06]} e6 {[%emt 0:01:15]} 2. d4 {[%emt 0:00:00]} d5 {[%emt 0:00:11]} 3. Nd2 {[%emt 0:00:00]} c5 {[%emt 0:00:16]} 4. Ngf3 {[%emt 0:00:05]} cxd4 {[%emt 0:00:26]} 5. Nxd4 {[%emt 0:00:19]} Nc6 {[%emt 0:00:07]} 6. Bb5 {[%emt 0:00:23]} Bd7 {[%emt 0:00:12]} 7. Nxc6 {[%emt 0:00:07]} bxc6 {[%emt 0:00:08]} 8. Bd3 {[%emt 0:00:08]} Qc7 {[%emt 0:01:20]} 9. Qe2 {[%emt 0:02:39]} Ne7 {[%emt 0:00:33]} 10. Nf3 {[%emt 0:02:44]} Ng6 {[%emt 0:02:27]} 11. e5 {[%emt 0:00:17] Repels Bd6. The position is equal.} f6 {[%emt 0:07:47]} 12. Bxg6+ {[%emt 0:03:23]} hxg6 {[%emt 0:00:57]} 13. Qd3 {[%emt 0:06:59]} (13. O-O $11) 13... Kf7 {[%emt 0:02:36]} 14. Bf4 {[%emt 0:06:43]} ({White should play} 14. h3 $15) 14... g5 $17 {[%emt 0:15:41]} 15. Bg3 {[%emt 0:00:05]} Qa5+ {[%emt 0:01:17]} 16. c3 {[%emt 0:00:52]} c5 {[%emt 0:07:07]} (16... Qb5 {simplifies} 17. Qxb5 cxb5 18. a3 Be7) 17. a4 $1 {[%emt 0:06:08] Prevents Bb5} Bc8 {[%emt 0:07:57]} (17... Bxa4 18. exf6 gxf6 19. O-O $15) 18. h4 {[%emt 0:06:42]} (18. exf6 $15 gxf6 19. O-O) 18... Ba6 {[%emt 0:06:05]} 19. Qc2 {[%emt 0:00:04]} Be7 {[%emt 0:09:30]} 20. O-O-O {[%emt 0:09:06] [#] And now exf6 would win.} g4 {[%emt 0:03:14]} 21. Nd2 {[%emt 0:03:57]} (21. exf6 $17 gxf6 22. h5) 21... f5 $19 {[%emt 0:04:14]} 22. f3 {[%emt 0:00:04]} gxf3 {[%emt 0:01:43]} 23. Nxf3 {[%emt 0:00:04][%cal Od1d5] [#]} d4 {[%emt 0:03:26]} (23... Qb6 $1 $19 {[%cal Od5d4][%mdl 512]} 24. Bf4 Bc4) 24. Ng5+ {[%emt 0:15:13] Weighted Error Value: White=0.27 (precise) /Black=0.17 (very precise) .  Mistake:       	White=5     	Black=1      Inaccurate:     	---       	Black=1      OK:         	White=4     	Black=4      Best:        	---       	Black=2      Strong:       	White=1     	---} (24. cxd4 $17 cxd4 25. Be1) 1/2-1/2

[Event "Fagernes Chess GM-Swiss 2024"]
[Site "Fagernes"]
[Date "2024.03.25"]
[Round "2"]
[White "Sasikiran, Krishnan"]
[Black "Celik, Hasan Huseyin"]
[Result "1/2-1/2"]
[ECO "C18"]
[WhiteElo "2578"]
[BlackElo "2417"]
[Annotator "TA"]
[PlyCount "93"]
[EventDate "2024.03.25"]
[EventType "swiss"]
[EventCountry "NOR"]
[SourceTitle "playchess.com"]
[Source "ChessBase"]
[SourceQuality "1"]
[TimeControl "40/6000+30:2400+30"]

{[%evp 13,93,-7,-4,-13,-3,-36,-4,-11,-3,-39,-18,-16,-12,-11,-11,-52,-44,-46,-9,-30,0,0,4,0,41,22,60,52,50,16,58,15,190,190,215,215,235,122,142,167,185,183,192,107,174,148,331,432,452,341,470,435,1610,629,759,759,765,755,620,198,195,82,90,73,70,62,110,97,100,92,88,32,28,34,32,27,48,44,49,39,49,56]} 1. e4 {[%emt 0:00:05]} e6 {[%emt 0:05:43]} 2. d4 {[%emt 0:00:16]} d5 {[%emt 0:00:07]} 3. Nc3 {[%emt 0:00:11]} Bb4 {[%emt 0:00:10]} 4. e5 {[%emt 0:00:16]} c5 {[%emt 0:00:08]} 5. a3 {[%emt 0:00:23]} Bxc3+ {[%emt 0:00:23]} 6. bxc3 {[%emt 0:00:07]} Ne7 {[%emt 0:00:27]} 7. h4 {[%emt 0:05:12]} Qc7 {[%emt 0:00:46]} 8. h5 {[%emt 0:09:25]} h6 {[%emt 0:01:09]} 9. a4 {[%emt 0:13:34]} b6 {[%emt 0:14:30]} 10. Bb5+ {[%emt 0:11:27] The position is equal.} Bd7 {[%emt 0:04:33]} 11. Ne2 {[%emt 0:02:18]} a6 {[%emt 0:08:15]} 12. Bxd7+ {[%emt 0:00:15]} Nxd7 {[%emt 0:00:06]} 13. O-O {[%emt 0:00:50]} Rc8 {[%emt 0:06:11]} 14. Ng3 {[%emt 0:02:28]} O-O {[%emt 0:03:15]} 15. Qg4 {[%emt 0:05:34]} f5 {[%emt 0:07:53]} 16. Qh4 {[%emt 0:11:41]} Qd8 {[%emt 0:05:20]} 17. Ne2 {[%emt 0:08:59]} Rf7 {[%emt 0:25:51]} 18. Qg3 {[%emt 0:10:23]} Kh7 {[%emt 0:03:23]} 19. Nf4 {[%emt 0:01:21]} Nf8 {[%emt 0:00:09]} 20. Qd3 {[%emt 0:04:24]} a5 {[%emt 0:03:55]} 21. Rb1 {[%emt 0:03:15]} Rc6 {[%emt 0:03:43]} 22. Re1 {[%emt 0:05:23]} g5 $2 {[%emt 0:05:32]} (22... cxd4 $11 23. cxd4 Rc4) 23. hxg6+ $18 {[%emt 0:02:20]} Nexg6 {[%emt 0:00:02]} 24. Nh5 $1 {[%emt 0:01:22]} Nd7 {[%emt 0:01:03]} 25. g3 {[%emt 0:04:55] Against Qh4} (25. Re3 $18) 25... cxd4 {[%emt 0:03:41]} 26. cxd4 {[%emt 0:00:15]} Qc8 {[%emt 0:00:45]} 27. Bd2 $1 {[%emt 0:03:14]} Rc4 {[%emt 0:01:38]} 28. Qe3 {[%emt 0:02:08]} (28. Kg2 $18) 28... f4 {[%emt 0:01:10] [#]} (28... Qf8 $16) 29. Qd3 $1 $36 {[%emt 0:00:11][%mdl 2048] White is really pushing.} (29. Nxf4 Nxf4 30. gxf4 Qg8+ 31. Kf1 Qg4 $11) (29. gxf4 Qg8 30. Kh1 Qd8 31. Nf6+ Nxf6 32. exf6 Qxf6 (32... Rxc2 $2 33. f5 $18) 33. Qxe6 Rxc2 (33... Nxf4 34. Qxf6 Rxf6 35. Re7+ Kg8 36. Bxf4 $11) 34. Qxf6 Rxf6 $15) 29... fxg3 {[%emt 0:01:57]} (29... Rf5 $16 {might work better.} 30. g4 (30. Nxf4 Nxf4 31. Bxf4 h5 $16) 30... Rg5) 30. fxg3 {[%emt 0:01:00][%cal Bf2g3,Bg3g4][%mdl 32]} Rf5 {[%emt 0:01:02]} 31. g4 {[%emt 0:01:57]} Ndxe5 {[%emt 0:01:09]} 32. Rxe5 {[%emt 0:00:41]} Rxe5 {[%emt 0:01:31]} (32... Nxe5 $142 33. Nf6+ Kh8 34. dxe5 Rxf6 35. exf6 Rxg4+ 36. Kh2 h5) 33. dxe5 {[%emt 0:00:38]} (33. Rf1 $142 Re4 34. Nf6+ Kh8 35. Qh3 (35. Nxe4 dxe4 36. Qxe4 Qd7 $18) 35... Rxg4+ 36. Nxg4) 33... Rxg4+ {[%emt 0:00:08]} 34. Kf2 {[%emt 0:00:27] Hoping for Nf6+.} Qf8+ {[%emt 0:01:15]} 35. Nf6+ {[%emt 0:00:33]} Kg7 {[%emt 0:00:00]} 36. Qf3 $2 {[%emt 0:00:24]} (36. Rxb6 Nxe5 (36... Rxa4 37. Rb7+) 37. Bxh6+ Kxh6 38. Qe3+ Kg6 (38... Rg5 $2 39. Rxe6 Ng4+ 40. Ke2 $19) 39. Qxe5 (39. Rxe6 $2 Re4 $19) 39... Qxf6+ 40. Qxf6+ Kxf6 $19) (36. Rf1) 36... Nxe5 {[%emt 0:00:11] [#]} 37. Nh5+ {[%emt 0:00:20]} (37. Bxh6+ $1 $18 {is the precise move to win.} Kxh6 38. Nxg4+ Nxg4+ 39. Ke2 Qxf3+ 40. Kxf3 Ne5+ 41. Kf4) 37... Kg8 $16 {[%emt 0:00:00]} 38. Qxf8+ {[%emt 0:00:38]} Kxf8 {[%emt 0:00:01]} 39. Rxb6 {[%emt 0:00:29]} (39. Bxh6+ Kf7 $16) 39... Kf7 {[%emt 0:02:11]} (39... Rc4 $14) 40. Rb7+ {[%emt 0:00:30]} (40. Bxh6 $6 Rh4 41. Rb7+ Kg6 42. Nf4+ Kf5 $14 (42... Kxh6 43. Nxe6 Rxa4 44. Rb5 $11) (42... Kxh6 43. Nxe6 Kg6 44. Nc5 $11)) 40... Kg6 {[%emt 0:00:22][%cal Bf7g6,Bg6f5,Bf5e5][%mdl 32]} 41. Nf4+ {[%emt 0:40:27]} Kf5 {[%emt 0:40:01]} 42. Nd3 {[%emt 0:00:41]} (42. Re7 $16) 42... Rxa4 $14 {[%emt 0:01:05]} 43. Nxe5 {[%emt 0:00:00]} Kxe5 {[%emt 0:00:00]} 44. Ke2 {[%emt 0:00:00]} h5 {[%emt 0:00:00][%cal Bh6h5,Bh5h4][%mdl 32]} 45. Rh7 {[%emt 0:00:00] White is slightly better.} h4 {[%emt 0:00:00]} 46. Be1 {[%emt 0:00:00]} Kf5 {[%emt 0:00:00]} 47. Rh5+ {[%emt 0:00:00] White really could win this.   Weighted Error Value: White=0.56/Black=0.34.  Loses game:     	---       	Black=2      Mistake:       	White=4     	Black=3      Inaccurate:     	White=5     	Black=6      OK:         	White=12    	Black=6      Best:        	White=2     	Black=3      Strong:       	White=3     	---} (47. Rxh4 Rxh4 48. Bxh4 Ke4 $11) 1/2-1/2

[Event "Fagernes Chess GM-Swiss 2024"]
[Site "Fagernes"]
[Date "2024.03.25"]
[Round "2"]
[White "Amar, Elham"]
[Black "Ingebretsen, Jens E"]
[Result "1/2-1/2"]
[ECO "B22"]
[WhiteElo "2567"]
[BlackElo "2402"]
[Annotator "TA"]
[PlyCount "75"]
[EventDate "2024.03.25"]
[EventType "swiss"]
[EventCountry "NOR"]
[SourceTitle "playchess.com"]
[Source "ChessBase"]
[SourceQuality "1"]
[TimeControl "40/6000+30:2400+30"]

{[%evp 16,75,31,0,19,10,11,14,23,17,0,0,0,0,0,0,0,0,0,0,0,0,0,0,8,-40,0,0,0,-22,-33,-86,-68,-83,-13,-9,-6,-8,0,0,0,0,0,0,0,-97,-27,-27,0,0,0,0,0,-82,-88,-88,0,0,0,0,0,-11]} 1. e4 {[%emt 0:00:22][%cal Be2e4,Be4e5][%mdl 32]} c5 {[%emt 0:01:14]} 2. Nf3 {[%emt 0:00:23]} Nc6 {[%emt 0:00:06]} 3. c3 {[%emt 0:00:17]} Nf6 {[%emt 0:00:12]} 4. e5 {[%emt 0:00:26]} Nd5 {[%emt 0:00:06]} 5. Bc4 {[%emt 0:00:16][%cal Bf1c4,Bc4b3,Bb3c2,Bc2e4][%mdl 32]} Nb6 {[%emt 0:00:08]} 6. Bb3 {[%emt 0:00:13]} c4 {[%emt 0:00:16]} 7. Bc2 {[%emt 0:00:09]} d6 {[%emt 0:00:12]} 8. exd6 {[%emt 0:00:10]} Qxd6 {[%emt 0:00:05]} 9. O-O {[%emt 0:00:07]} Bg4 {[%emt 0:00:03]} 10. h3 {[%emt 0:00:08]} Bh5 {[%emt 0:00:05]} 11. Re1 {[%emt 0:00:07] Prevents Ne5.} O-O-O {[%emt 0:00:40]} 12. Be4 {[%emt 0:16:11]} e6 {[%emt 0:19:43]} 13. a4 {[%emt 0:00:11]} f5 {[%emt 0:09:04]} 14. Bxc6 {[%emt 0:16:28]} Qxc6 {[%emt 0:04:26]} 15. a5 $1 {[%emt 0:00:41]} Nd5 {[%emt 0:05:26]} 16. Ne5 {[%emt 0:08:44]} Bxd1 {[%emt 0:05:52]} 17. Nxc6 {[%emt 0:00:46]} bxc6 {[%emt 0:00:02]} 18. Rxd1 {[%emt 0:00:06]} Nf6 {[%emt 0:10:03]} 19. Ra4 {[%emt 0:02:45]} Rd5 {[%emt 0:02:38]} 20. Re1 {[%emt 0:31:56]} (20. Rxc4 $11 {is more appropriate.} Rxa5 21. b4 (21. Rxc6+ Kd7 $11)) 20... Kd7 {[%emt 0:06:11]} 21. a6 {[%emt 0:05:49][%cal Od2d3]} Bd6 {[%emt 0:04:37]} 22. d4 {[%emt 0:08:17][%cal Ob1d2]} cxd3 {[%emt 0:08:03]} 23. Be3 {[%emt 0:00:48]} (23. c4 $15 Re5 24. Rd1) 23... Rb5 {[%emt 0:23:09] Hoping for ...e5.} 24. b4 {[%emt 0:01:37]} f4 {[%emt 0:01:03]} (24... Nd5 $17 25. Rd1 f4 (25... Nxe3 26. fxe3 Be7 27. Kf2 $17) 26. Bxa7 Ra8) 25. Bxa7 $11 {[%emt 0:02:31]} Ra8 {[%emt 0:01:08]} 26. Bc5 {[%emt 0:00:32]} Bxc5 {[%emt 0:01:41]} 27. bxc5 {[%emt 0:00:04]} Rxc5 {[%emt 0:04:52]} 28. c4 $1 {[%emt 0:00:03]} Kc7 {[%emt 0:01:50]} 29. Nd2 {[%emt 0:00:12]} Nd7 $36 {[%emt 0:00:25][%mdl 2048] Black has good play.} (29... e5 $6 30. Nb3 Nd7 31. a7 $16) 30. Rb1 {[%emt 0:04:31]} (30. Rxe6 $11 {keeps the balance.} Re5 31. Rxe5 Nxe5 32. c5) 30... Nb6 {[%emt 0:00:46]} (30... Re5 $17 {Threatens to win with ...Nc5.} 31. Ra3 (31. Rb7+ Kc8 $15) 31... Nc5) 31. Ra3 {[%emt 0:02:14]} e5 {[%emt 0:01:02]} (31... Nxc4 32. Nxc4 (32. Rxd3 Nd6 $17) 32... Rxc4 33. Rxd3 (33. Rb7+ Kc8 $11) 33... Rxa6 34. Rbd1 $17) 32. f3 {[%emt 0:00:49]} Nxc4 {[%emt 0:00:42]} 33. Rb7+ {[%emt 0:03:36]} ({Much worse is} 33. Rxd3 Rxa6 34. Nxc4 Rxc4 $17) 33... Kc8 {[%emt 0:00:01]} 34. Nxc4 {[%emt 0:00:38]} (34. Rxd3 $11 Rxa6 35. Rdd7 (35. Rxg7 $2 Ne3 $19) 35... Nxd2 36. Rdc7+ Kd8 37. Rf7) 34... Rxc4 $17 {[%emt 0:00:01]} 35. Rxd3 {[%emt 0:01:33] [#]} Rxa6 {[%emt 0:01:04]} ({Better is} 35... Rd4 $1 $17 {[%cal Rd4d3]} 36. Rxd4 exd4) 36. Rdd7 $11 {[%emt 0:00:07] The position is equal.} (36. Rxg7 {leads to mate.} Ra1+ 37. Kh2 Rcc1 38. Rg8+ Kc7 39. Rg7+ Kb6 40. Rb3+ Kc5) 36... Ra1+ {[%emt 0:00:14]} 37. Kh2 {[%emt 0:00:04] White threatens Rdc7+ and mate.} Rcc1 {[%emt 0:00:37][%csl Ga1][%cal Rc1h1]} 38. Rdc7+ {[%emt 0:00:35] Weighted Error Value: White=0.14 (very precise) /Black=0.14 (very precise) .  Mistake:       	White=4     	Black=3      Inaccurate:     	---       	Black=2      OK:         	White=11    	Black=10     Best:        	White=5     	Black=3      Strong:       	White=2     	---} 1/2-1/2

[Event "Fagernes Chess GM-Swiss 2024"]
[Site "Fagernes"]
[Date "2024.03.25"]
[Round "2"]
[White "Urkedal, Frode Olav Olsen"]
[Black "Panda Sambit"]
[Result "1/2-1/2"]
[ECO "D35"]
[WhiteElo "2536"]
[BlackElo "2377"]
[Annotator "TA"]
[PlyCount "94"]
[EventDate "2024.03.25"]
[EventType "swiss"]
[EventCountry "NOR"]
[SourceTitle "playchess.com"]
[Source "ChessBase"]
[SourceQuality "1"]
[TimeControl "40/6000+30:2400+30"]

{[%evp 18,94,14,8,20,0,19,14,16,17,23,14,24,0,5,0,20,10,8,6,8,0,18,0,0,-22,0,0,0,-12,0,-10,-21,-11,-10,-51,0,-18,-16,-3,-15,-33,-29,-30,0,-50,-55,-55,-55,-55,-55,-250,-46,-47,0,0,0,0,0,-2,0,0,0,0,0,0,0,0,0,0,0,0,0,0,0,0,0,0,0]} 1. d4 {[%emt 0:00:02]} d5 {[%emt 0:05:31]} 2. c4 {[%emt 0:00:06]} e6 {[%emt 0:03:21]} 3. Nc3 {[%emt 0:00:20]} Nf6 {[%emt 0:00:12]} 4. cxd5 {[%emt 0:00:07]} exd5 {[%emt 0:00:04]} 5. Bg5 {[%emt 0:00:07]} c6 {[%emt 0:00:04]} 6. e3 {[%emt 0:00:12]} h6 {[%emt 0:00:14]} 7. Bh4 {[%emt 0:00:12]} Be7 {[%emt 0:00:05]} 8. Bd3 {[%emt 0:00:15]} O-O {[%emt 0:01:50]} 9. Nge2 {[%emt 0:03:16]} Nbd7 {[%emt 0:00:14]} 10. O-O {[%emt 0:00:38]} Re8 {[%emt 0:02:33]} 11. a4 {[%emt 0:00:24]} Nh5 {[%emt 0:00:34]} 12. Bxe7 {[%emt 0:00:20]} Qxe7 {[%emt 0:00:03]} 13. a5 {[%emt 0:02:07]} Nf8 {[%emt 0:00:13]} 14. Qc2 {[%emt 0:06:17]} Bg4 {[%emt 0:26:39]} 15. h3 {[%emt 0:11:13]} Bxe2 {[%emt 0:10:18]} 16. Nxe2 {[%emt 0:03:20]} Rac8 {[%emt 0:03:09]} 17. Rab1 {[%emt 0:07:05]} a6 {[%emt 0:10:19]} 18. b4 {[%emt 0:02:28]} Nf6 {[%emt 0:01:51]} 19. Rfe1 {[%emt 0:08:53]} Ne4 {[%emt 0:12:55]} 20. f3 {[%emt 0:07:27]} Nd6 {[%emt 0:00:05]} 21. Ng3 {[%emt 0:12:16]} g6 {[%emt 0:05:33]} 22. Qf2 $1 {[%emt 0:01:32]} Ne6 {[%emt 0:00:58]} 23. Nf1 {[%emt 0:03:42]} Qf6 {[%emt 0:05:21]} 24. Nd2 {[%emt 0:04:44]} Rc7 {[%emt 0:05:46]} 25. Nb3 {[%emt 0:00:54]} Rce7 {[%emt 0:02:15]} 26. Rbc1 {[%emt 0:01:39]} Nf5 {[%emt 0:03:39]} (26... h5 $15) 27. Re2 {[%emt 0:03:32]} h5 {[%emt 0:03:33]} 28. Rce1 {[%emt 0:05:21]} h4 {[%emt 0:03:45]} 29. Bxf5 {[%emt 0:01:22]} gxf5 {[%emt 0:00:10]} 30. f4 {[%emt 0:04:35]} Ng7 {[%emt 0:02:28][%cal Be6g7,Bg7h5,Bh5g3][%mdl 32]} 31. Nd2 {[%emt 0:00:20]} (31. g4 $11) 31... Nh5 $1 $15 {[%emt 0:00:57]} 32. Nf3 {[%emt 0:00:06]} Ng3 {[%emt 0:00:10]} 33. Rc2 {[%emt 0:00:05]} Kh8 {[%emt 0:00:35]} 34. Kh2 $2 {[%emt 0:01:07] [#]} (34. Rb2 $15) 34... Rg8 $2 {[%emt 0:00:07]} (34... Rxe3 $1 $19 35. Ne5 (35. Rxe3 $2 {perishes.} Rxe3 36. Ne5 Kg7 $19) (35. Rxc6 $2 Rxe1 36. Qxe1 Rxe1 $19) 35... Rxe1 36. Qxe1 Kg8) 35. Rec1 {[%emt 0:01:25][%cal Ob4b5]} Qh6 {[%emt 0:01:23]} (35... Kg7 $15) 36. b5 $1 $36 {[%emt 0:00:55][%mdl 2048] White has good play. The position is equal.} cxb5 {[%emt 0:00:52]} 37. Rc7 {[%emt 0:00:13]} Qd6 {[%emt 0:00:36]} 38. Rc8 {[%emt 0:00:33]} Ree8 {[%emt 0:00:36]} 39. Rxe8 {[%emt 0:00:29]} Rxe8 {[%emt 0:00:04]} 40. Nxh4 {[%emt 0:00:06]} Rg8 {[%emt 0:00:07]} 41. Nf3 {[%emt 0:42:38]} f6 $1 {[%emt 0:01:51]} 42. Nh4 {[%emt 0:00:00]} Qd7 {[%emt 0:03:37]} 43. Qe1 {[%emt 0:00:00]} Ne4 {[%emt 0:13:29]} 44. Rc2 {[%emt 0:00:00]} Nd6 {[%emt 0:06:41]} 45. Rc5 {[%emt 0:00:00]} Ne4 {[%emt 0:00:13]} 46. Rc2 {[%emt 0:00:00]} Nd6 {[%emt 0:00:03]} 47. Rc5 {[%emt 0:00:00]} Ne4 {[%emt 0:03:58] Weighted Error Value: White=0.13 (very precise) /Black=0.13 (very precise) .  Loses game:     	White=1     	---        Missed win:     	---       	Black=1      Mistake:       	White=1     	Black=2      Inaccurate:     	White=1     	Black=1      OK:         	White=13    	Black=14     Best:        	White=3     	Black=1      Strong:       	White=2     	Black=2} 1/2-1/2